bitfinex-derivatives/quotes_ETHF0:USTF0_20250403
["timestamp","ask_amount","ask_price","bid_price","bid_amount"]
[1743642079763,1.49195104,1821.7,1821.6,1.4022]
[1743642080763,0.00825104,1821.7,1821.6,1.4022]
[1743642081559,0.88670104,1821.7,1821.6,1.4022]
[1743642081765,4.09450104,1821.7,1821.6,1.4022]
[1743642083564,3.21605104,1821.7,1821.6,1.4022]
[1743642084858,4.09450104,1821.7,1821.6,1.4022]
[1743642086567,0.88670104,1821.7,1821.6,1.4022]
[1743642087360,3.21605104,1821.7,1821.3,0.00825104]
[1743642087563,3.21605104,1821.7,1821.3,1e-08]
[1743642087564,4.0864,1821.4,1821.3,1e-08]
[1743642087768,0.87889,1820.8,1820.7,1.4406]
[1743642087970,3.2078,1820.9,1820.4,1.44921585]
[1743642088165,3.2078,1820.9,1820.5,1.4406]
[1743642088166,0.87901,1820.6,1820.5,1.4406]
[1743642088868,4.6985,1820.7,1820.5,1.4406]
[1743642089068,0.00825104,1820.7,1820.6,0.87898]
[1743642089272,0.00825104,1820.7,1820.6,4.08678]
[1743642089479,0.00825104,1820.7,1820.6,4.78828]
[1743642089859,0.00825104,1820.7,1820.6,10.61228]
[1743642090065,0.00825104,1820.7,1820.6,13.11228]
[1743642090468,0.00825104,1820.7,1820.6,14.56478]
[1743642090871,0.00825104,1820.7,1820.6,11.1858]
[1743642091171,0.88719104,1820.7,1820.6,7.978]
[1743642091567,0.88719104,1820.7,1820.6,1.4525]
[1743642091971,4.09499104,1820.7,1820.6,1.4525]
[1743642092270,0.87903,1820.5,1820.4,0.75855104]
[1743642092663,4.08683,1820.5,1820.4,0.00825104]
[1743642093176,8.84363,1820.5,1820.4,0.00825104]
[1743642094275,4.78963,1820.5,1820.4,0.00825104]
[1743642096663,4.08683,1820.5,1820.4,0.00825104]
[1743642096876,0.87903,1820.5,1820.4,0.00825104]
[1743642097172,0.87903,1820.5,1820.4,1.51715104]
[1743642098770,4.08683,1820.5,1820.4,0.00825104]
[1743642099470,4.83313,1820.5,1820.4,0.00825104]
[1743642101874,4.08683,1820.5,1820.4,0.00825104]
[1743642102371,0.87903,1820.5,1820.4,0.00825104]
[1743642102978,4.08683,1820.5,1820.4,0.00825104]
[1743642103177,0.87903,1820.5,1820.4,1.48175104]
[1743642105076,0.00825104,1820.7,1820.5,0.87901]
[1743642105279,0.88719104,1820.7,1820.6,1.4669]
[1743642106568,0.00825104,1820.7,1820.6,1.4669]
[1743642107168,0.88719104,1820.7,1820.6,1.4669]
[1743642109477,0.00825104,1820.7,1820.6,8.16988]
[1743642109676,0.00825104,1820.7,1820.6,12.22288]
[1743642111173,0.00825104,1820.7,1820.6,15.43068]
[1743642111375,1.4916,1821.2,1821.0,0.87878]
[1743642111376,0.87871,1821.2,1821.0,0.87878]
[1743642111680,0.87869,1821.2,1821.1,2.9274]
[1743642112079,3.2078,1821.5,1821.1,2.9274]
[1743642112080,0.87868,1821.3,1821.1,2.9274]
[1743642112277,0.87868,1821.3,1821.2,1.4798]
[1743642112475,0.88688104,1821.4,1821.2,2.35848]
[1743642112675,0.88688104,1821.4,1821.2,8.18248]
[1743642113179,0.88688104,1821.4,1821.2,7.3038]
[1743642113180,0.87865,1821.3,1821.2,7.3038]
[1743642113678,5.51975,1821.3,1821.2,7.3038]
[1743642113877,5.51975,1821.3,1821.2,5.824]
[1743642114876,0.87874,1821.1,1821.0,1.3744]
[1743642115072,0.87883,1821.0,1820.7,0.87893]
[1743642115277,0.87889,1820.8,1820.7,1.3744]
[1743642115782,0.87887,1820.9,1820.7,1.3744]
[1743642115983,0.87881,1821.0,1820.7,2.25333]
[1743642116383,0.87881,1821.0,1820.8,1.4988]
[1743642116583,0.87881,1821.0,1820.9,0.6866]
[1743642118985,6.77538,1821.3,1820.9,0.6866]
[1743642118986,0.87878,1821.1,1820.9,1.9283181]
[1743642119187,0.87878,1821.1,1821.0,1.4134]
[1743642119688,0.87872,1821.2,1821.0,1.95403095]
[1743642119888,0.87874,1821.1,1820.9,2.26654]
[1743642120380,0.87874,1821.1,1820.9,1.3877]
[1743642120688,0.87879,1821.0,1820.9,1.3877]
[1743642120889,0.87879,1821.0,1820.9,1.92834612]
[1743642121382,0.87879,1821.0,1820.9,5.4377]
[1743642122183,0.87879,1821.0,1820.9,1.3877]
[1743642123289,0.87884,1820.9,1820.8,5.824]
[1743642123481,0.87903,1820.5,1820.4,0.00825104]
[1743642124784,4.08683,1820.5,1820.4,0.00825104]
[1743642125092,2.19784,1820.3,1819.6,9.874]
[1743642125389,0.87937,1819.8,1819.6,9.874]
[1743642125697,0.87937,1819.8,1819.6,9.84693574]
[1743642126189,0.87942,1819.7,1819.6,5.79693574]
[1743642126386,0.87942,1819.7,1819.6,6.33867868]
[1743642126593,0.00825104,1819.9,1819.6,6.33867868]
[1743642126893,0.88760104,1819.9,1819.7,0.54174294]
[1743642127083,0.88760104,1819.9,1819.8,0.54174294]
[1743642127486,0.87938,1819.8,1819.6,9.88418574]
[1743642127688,0.87938,1819.8,1819.7,0.54098473]
[1743642127893,0.87938,1819.8,1819.6,5.79693574]
[1743642128192,0.88760104,1819.9,1819.7,0.54090749]
[1743642128392,0.00825104,1819.9,1819.7,0.87941]
[1743642128594,0.88758104,1819.9,1819.8,0.54065816]
[1743642128890,0.88758104,1819.9,1819.7,0.87941]
[1743642129085,0.00825104,1819.9,1819.7,0.87941]
[1743642129284,0.00825104,1819.9,1819.8,0.54053526]
[1743642129481,0.00825104,1819.9,1819.8,7.216841]
[1743642129682,0.87913,1820.3,1820.1,0.87921]
[1743642129887,3.2078,1820.5,1820.3,0.02706426]
[1743642129888,0.87912,1820.4,1820.3,0.02706426]
[1743642130281,0.85205574,1820.4,1820.2,0.7255]
[1743642130490,0.87913,1820.3,1820.2,0.7255]
[1743642130695,1.4281,1820.6,1820.2,0.7255]
[1743642130696,3.2078,1820.7,1820.2,2.14517124]
[1743642130888,3.2078,1820.9,1820.5,0.87901]
[1743642131086,3.2078,1820.9,1820.6,0.7255]
[1743642131287,0.87894,1820.7,1820.6,0.7255]
[1743642132087,0.00825104,1820.9,1820.6,0.7255]
[1743642132285,0.88710104,1820.9,1820.7,2.1679162]
[1743642132493,0.88710104,1820.9,1820.8,4.05]
[1743642132795,0.00825104,1820.9,1820.8,5.46904724]
[1743642132993,0.00825104,1820.9,1820.8,8.67684724]
[1743642133193,0.87868,1821.3,1821.0,0.87877]
[1743642133387,0.87869,1821.2,1821.1,4.049]
[1743642134396,0.88693103,1821.3,1821.1,4.049]
[1743642134596,0.00825103,1821.3,1821.2,1.4534]
[1743642134987,0.00825103,1821.3,1821.2,2.33209]
[1743642135296,0.00825103,1821.3,1821.2,3.61476965]
[1743642135598,0.00825103,1821.3,1821.2,3.61464776]
[1743642135995,0.00825103,1821.3,1821.2,8.87242574]
[1743642136888,0.00825103,1821.3,1821.2,7.99373574]
[1743642137093,0.00825103,1821.3,1821.2,8.87242574]
[1743642137297,0.00825103,1821.3,1821.2,12.92042574]
[1743642137995,0.00825103,1821.3,1821.2,13.45917916]
[1743642138296,0.00825103,1821.3,1821.2,12.92042574]
[1743642138597,0.00825103,1821.3,1821.2,7.25033574]
[1743642138993,0.88690103,1821.3,1821.2,7.25033574]
[1743642139195,1.51095103,1821.3,1821.2,7.25033574]
[1743642139393,0.00825103,1821.3,1821.2,7.25033574]
[1743642140099,0.00825103,1821.3,1821.2,8.12902574]
[1743642141697,0.87842,1821.8,1821.5,0.87855]
[1743642141903,3.2078,1822.1,1821.7,0.87843]
[1743642142103,3.2078,1822.1,1821.8,5.4627]
[1743642142104,4.6462,1822.1,1821.8,5.4627]
[1743642142404,4.08608,1822.1,1821.9,1.4157]
[1743642142598,4.08608,1822.1,1821.9,7.21263574]
[1743642143803,4.6462,1822.3,1821.9,7.21263574]
[1743642144102,4.08601,1822.3,1822.0,0.87829]
[1743642144297,3.2078,1822.8,1822.1,11.33903574]
[1743642144498,3.2078,1822.8,1822.1,12.09373574]
[1743642144499,1.3821,1822.7,1822.1,12.09373574]
[1743642144703,1.3821,1822.7,1822.2,9.00473574]
[1743642144704,3.2078,1822.7,1822.2,9.00473574]
[1743642144904,0.87794,1822.8,1822.5,0.87804]
[1743642145105,0.87794,1822.8,1822.6,6.2958]
[1743642145293,0.87794,1822.8,1822.7,1.4951]
[1743642145604,3.2078,1823.1,1822.7,10.9470625]
[1743642145799,3.2078,1823.1,1822.8,0.87789]
[1743642146104,4.08562,1823.1,1822.9,5.5411]
[1743642146301,0.87783,1823.0,1822.9,5.5411]
[1743642147004,4.08561,1823.1,1822.9,5.5411]
[1743642147202,0.87783,1823.0,1822.9,1.4951]
[1743642147404,4.08562,1823.1,1822.9,5.5411]
[1743642147602,3.2078,1823.1,1822.9,6.41896]
[1743642147795,5.95550991,1823.8,1822.9,11.33803574]
[1743642147796,3.2078,1823.3,1822.9,11.33803574]
[1743642147997,0.87764,1823.4,1822.9,14.54583574]
[1743642148205,0.87764,1823.4,1823.0,6.67474574]
[1743642148504,0.87764,1823.4,1823.1,1.3913]
[1743642148806,0.87765,1823.4,1823.2,4.044]
[1743642149004,0.87765,1823.4,1823.3,1.3913]
[1743642149811,0.87761,1823.5,1823.3,1.3913]
[1743642150001,0.87756,1823.6,1823.3,7.18823574]
[1743642150199,2.27246,1823.6,1823.4,1.5038]
[1743642150600,0.87759,1823.5,1823.4,1.5038]
[1743642151197,0.87763,1823.4,1823.3,5.79693574]
[1743642151410,2.27253,1823.4,1823.3,5.79693574]
[1743642151806,0.87773,1823.2,1823.1,4.044]
[1743642152102,4.6027,1823.4,1822.9,5.5468]
[1743642152412,0.87783,1823.0,1822.9,5.5468]
[1743642153703,0.87781,1823.1,1822.9,6.42467]
[1743642153903,1.3949,1823.4,1823.0,0.87781]
[1743642154208,0.87773,1823.2,1823.1,1.4204]
[1743642156209,3.2078,1823.7,1823.2,0.87771]
[1743642156403,1.4017,1823.6,1823.3,1.3943]
[1743642156609,0.87768,1823.3,1823.2,4.042]
[1743642156809,0.87783,1823.0,1822.9,5.4363]
[1743642157310,2.27946,1823.2,1822.9,6.31415]
[1743642157613,0.87779,1823.1,1822.9,6.31415]
[1743642157804,0.87779,1823.1,1822.9,5.4363]
[1743642158112,0.87782,1823.1,1822.9,6.31418]
[1743642158806,1.4017,1823.2,1822.9,5.4363]
[1743642159114,3.2078,1823.6,1823.0,3.2078]
[1743642159315,0.87759,1823.5,1823.3,0.87768]
[1743642159612,0.87759,1823.5,1823.4,1.386]
[1743642159808,4.08537,1823.6,1823.4,1.386]
[1743642160404,3.2078,1823.6,1823.5,0.87759]
[1743642160608,0.87747,1823.8,1823.4,5.3128]
[1743642160609,3.2078,1823.8,1823.4,5.3128]
[1743642160808,0.87744,1823.9,1823.7,0.87746]
[1743642161013,0.87744,1823.9,1823.8,1.386]
[1743642161703,3.2078,1824.2,1823.8,1.386]
[1743642161908,0.87731,1824.1,1823.8,1.386]
[1743642162109,0.87731,1824.1,1823.9,0.87739]
[1743642162307,3.2078,1824.2,1823.9,0.87739]
[1743642162308,4.6618,1824.2,1823.9,0.87739]
[1743642162513,1.454,1824.1,1823.9,0.87739]
[1743642162816,1.454,1824.1,1824.0,1.4546]
[1743642163216,3.2078,1824.6,1824.1,0.8773]
[1743642163510,2.33117,1824.4,1824.1,0.8773]
[1743642163712,4.08489,1824.6,1824.2,6.37084]
[1743642163908,2.33111,1824.5,1824.2,5.4936]
[1743642164111,3.2078,1824.4,1824.2,4.039]
[1743642164313,3.2078,1824.4,1824.0,13.92105574]
[1743642164314,2.30252,1824.3,1824.0,13.92105574]
[1743642164809,0.8773,1824.1,1824.0,5.79693574]
[1743642165008,3.2078,1824.2,1823.9,1.4696]
[1743642165202,2.3026,1824.1,1823.9,1.4696]
[1743642165910,0.87739,1823.9,1823.8,0.0082282]
[1743642166211,1.4253,1824.1,1823.8,0.0082282]
[1743642166212,1.4253,1824.1,1824.0,0.87735]
[1743642166419,3.63136,1824.8,1823.9,5.5076]
[1743642166420,3.2078,1824.6,1823.9,5.5076]
[1743642166717,3.2078,1824.4,1823.9,5.5076]
[1743642166917,0.87735,1824.0,1823.9,4.038]
[1743642167211,0.87739,1823.9,1823.8,0.0082282]
[1743642167413,2.25969,1823.9,1823.8,0.0082282]
[1743642168217,5.46749,1823.9,1823.8,0.0082282]
[1743642169108,2.25969,1823.9,1823.8,0.0082282]
[1743642169815,5.46749,1823.9,1823.8,0.0082282]
[1743642175209,0.87778,1823.1,1823.0,3.2078]
[1743642175416,0.87778,1823.1,1823.0,1.23267051]
[1743642175609,0.87778,1823.1,1823.0,1.93467221]
[1743642176009,2.39648,1823.1,1823.0,1.93467221]
[1743642176420,2.39648,1823.1,1823.0,1.2404662]
[1743642176616,2.39648,1823.1,1823.0,0.7020017]
[1743642176816,0.87783,1823.0,1822.9,0.0082282]
[1743642177018,5.52613,1823.0,1822.9,0.0082282]
[1743642177619,8.02613,1823.0,1822.9,0.0082282]
[1743642178820,5.52613,1823.0,1822.9,0.0082282]
[1743642179221,9.56313,1823.0,1822.9,0.0082282]
[1743642181120,13.37988,1823.0,1822.2,6.49373574]
[1743642181324,4.08587,1822.5,1822.4,1.4777]
[1743642181516,0.87816,1822.3,1822.2,2.1745]
[1743642181730,0.87816,1822.3,1822.2,2.71253697]
[1743642181924,0.87816,1822.3,1822.2,3.41342107]
[1743642182421,4.08596,1822.3,1822.2,0.7008841]
[1743642182628,0.87821,1822.2,1822.1,0.0082282]
[1743642182825,4.28223,1822.2,1821.5,7.21823574]
[1743642183124,0.87847,1821.7,1821.6,1.4696]
[1743642183328,0.87859,1821.5,1821.3,4.037]
[1743642183520,2.25443,1821.6,1821.4,1.4696]
[1743642183721,0.87853,1821.6,1821.4,1.4696]
[1743642183921,0.87848,1821.7,1821.4,2.34819]
[1743642184125,0.8867082,1821.7,1821.5,0.7178]
[1743642184421,0.8867082,1821.7,1821.6,1.4696]
[1743642184626,0.8786,1821.4,1821.3,0.0082282]
[1743642184824,4.5837,1821.6,1821.3,0.0082282]
[1743642185020,0.87855,1821.5,1821.3,0.0082282]
[1743642185225,4.0864,1821.4,1821.3,0.0082282]
[1743642186124,5.5994,1821.4,1821.3,0.0082282]
[1743642190021,4.08631,1821.6,1821.3,0.0082282]
[1743642190523,4.08631,1821.6,1821.5,0.87855]
[1743642190524,3.2078,1821.6,1821.5,0.87855]
[1743642190730,0.0082282,1821.7,1821.3,0.0082282]
[1743642190731,0.0082282,1821.7,1821.6,0.8785]
[1743642191536,0.0082282,1821.7,1821.6,2.396]
[1743642191829,0.0082282,1821.7,1821.6,1.5175]
[1743642192032,0.8866782,1821.7,1821.6,1.5175]
[1743642192830,0.0082282,1821.7,1821.6,1.5175]
[1743642193035,0.8866782,1821.7,1821.6,1.5175]
[1743642193427,0.0082282,1821.7,1821.6,1.5175]
[1743642193627,0.8866782,1821.7,1821.6,1.5175]
[1743642193834,0.0082282,1821.7,1821.6,1.5175]
[1743642194030,0.8866782,1821.7,1821.6,1.5175]
[1743642194235,0.0082282,1821.7,1821.6,1.5175]
[1743642194432,0.0082282,1821.7,1821.6,2.396]
[1743642195931,0.0082282,1821.7,1821.6,6.434]
[1743642196133,4.086,1822.3,1822.0,0.8783]
[1743642196432,3.2078,1822.3,1822.2,0.87821]
[1743642196841,3.2078,1822.3,1822.2,1.4568]
[1743642197143,0.87812,1822.4,1822.2,1.4568]
[1743642197144,0.87814,1822.4,1822.2,2.33501]
[1743642197348,0.0082282,1822.4,1822.3,1.5178]
[1743642197939,0.0082282,1822.4,1822.3,2.39596]
[1743642198347,0.0082282,1822.4,1822.3,1.5178]
[1743642200047,0.0082282,1822.4,1822.3,2.39596]
[1743642202938,0.0082282,1822.4,1822.3,12.22989574]
[1743642203443,0.0082282,1822.4,1822.3,12.76606799]
[1743642204746,0.0082282,1822.4,1822.3,7.31473574]
[1743642204747,0.8863482,1822.4,1822.3,7.31473574]
[1743642205949,0.0082282,1822.4,1822.3,7.31473574]
[1743642206153,0.8863482,1822.4,1822.3,1.5178]
[1743642206450,0.0082282,1822.4,1822.3,1.5178]
[1743642207150,0.0082282,1822.4,1822.3,2.39596]
[1743642207947,0.0082282,1822.4,1822.3,9.42387298]
[1743642208259,0.0082282,1822.4,1822.3,10.12430659]
[1743642208454,0.0082282,1822.4,1822.3,9.43113776]
[1743642208649,0.0082282,1822.4,1822.3,11.93113776]
[1743642208952,0.0082282,1822.4,1822.3,11.93100211]
[1743642210048,0.87798,1822.7,1822.5,0.87804]
[1743642210252,0.87798,1822.7,1822.6,1.3908]
[1743642211241,0.87802,1822.6,1822.5,0.0082282]
[1743642211552,0.87812,1822.4,1822.3,5.79693574]
[1743642212346,2.31172,1822.4,1822.3,5.79693574]
[1743642212851,2.31172,1822.4,1822.2,0.0082282]
[1743642213151,4.08596,1822.3,1822.2,0.0082282]
[1743642213353,5.53816,1822.3,1822.2,0.0082282]
[1743642213548,5.53816,1822.3,1821.9,1.4984]
[1743642213549,0.87824,1822.2,1821.9,1.4984]
[1743642213754,4.66,1822.1,1821.9,1.4984]
[1743642213946,4.66,1822.1,1821.9,2.37675]
[1743642214144,4.66,1822.1,1821.9,2.37673]
[1743642214344,4.66,1822.1,1821.9,1.4984]
[1743642214643,5.53829,1822.1,1821.9,1.4984]
[1743642215049,0.87831,1822.0,1821.9,1.4984]
[1743642215353,2.33051,1822.0,1821.9,1.4984]
[1743642216446,2.33051,1822.0,1821.8,0.0082282]
[1743642216447,0.87836,1821.9,1821.8,0.0082282]
[1743642216654,5.54986,1821.9,1821.8,0.0082282]
[1743642216947,4.6715,1821.9,1821.8,0.0082282]
[1743642217152,4.08607,1822.1,1821.8,0.8865982]
[1743642217353,4.08607,1822.1,1821.9,1.3823]
[1743642218755,0.87831,1822.0,1821.9,1.3823]
[1743642219154,0.87836,1821.9,1821.8,0.0082282]
[1743642220056,4.08616,1821.9,1821.8,0.0082282]
[1743642220750,5.54116,1821.9,1821.8,0.0082282]
[1743642221355,2.19604,1821.8,1821.3,3.2078]
[1743642221658,6.22981,1822.0,1820.8,9.74233574]
[1743642221659,3.2078,1821.4,1820.8,9.74233574]
[1743642221862,1.455,1821.3,1820.9,1.98827384]
[1743642222055,1.455,1821.3,1820.9,1.4472]
[1743642222056,0.87879,1821.0,1820.9,1.4472]
[1743642222254,0.87879,1821.0,1820.9,2.68247277]
[1743642222455,0.87879,1821.0,1820.9,1.98839101]
[1743642222661,0.87879,1821.0,1820.9,3.38651119]
[1743642222857,0.87879,1821.0,1820.9,2.6929191]
[1743642223263,0.0082282,1821.1,1820.9,2.6929191]
[1743642223461,0.0082282,1821.1,1821.0,0.54119101]
[1743642223657,0.0082282,1821.1,1821.0,2.90088101]
[1743642223857,0.0082282,1821.1,1821.0,2.02209101]
[1743642224763,0.0082282,1821.1,1821.0,2.90088101]
[1743642224958,0.0082282,1821.1,1821.0,11.53889914]
[1743642225363,0.0082282,1821.1,1821.0,11.53856191]
[1743642226558,0.0082282,1821.1,1821.0,10.8462397]
[1743642227172,0.0082282,1821.1,1821.0,10.84484131]
[1743642227967,0.0082282,1821.1,1821.0,7.63704131]
[1743642228269,0.0082282,1821.1,1821.0,6.75825131]
[1743642228566,0.0082282,1821.1,1821.0,6.05469262]
[1743642228956,0.0082282,1821.1,1821.0,6.93348262]
[1743642229161,0.0082282,1821.1,1821.0,10.14128262]
[1743642229469,0.87853,1821.6,1821.0,14.65131807]
[1743642229667,0.6988,1821.7,1821.1,1.29559262]
[1743642229668,3.2078,1821.3,1821.1,1.29559262]
[1743642229868,0.87869,1821.3,1821.2,1.4172]
[1743642230165,3.2078,1821.5,1821.2,1.4172]
[1743642230166,0.87862,1821.4,1821.2,1.4172]
[1743642230468,2.34208,1821.5,1821.2,2.29589]
[1743642230670,2.34208,1821.5,1821.3,0.87864]
[1743642230671,2.3503082,1821.5,1821.3,0.87864]
[1743642230970,2.3503082,1821.5,1821.4,1.4172]
[1743642231666,0.8868082,1821.5,1821.4,1.4172]
[1743642231872,4.0946082,1821.5,1821.4,1.4172]
[1743642232170,4.0946082,1821.5,1821.1,1.63451]
[1743642232171,0.87868,1821.3,1821.1,0.7558]
[1743642232371,0.87868,1821.3,1821.2,1.4055]
[1743642232869,0.87872,1821.2,1821.0,7.43639574]
[1743642233171,2.38342,1821.2,1821.0,3.04496]
[1743642233562,0.87872,1821.2,1821.0,3.04496]
[1743642233964,0.87861,1821.4,1821.2,0.87867]
[1743642234257,0.87861,1821.4,1821.3,1.4055]
[1743642235161,0.0082282,1821.5,1821.3,5.4395]
[1743642235357,0.0082282,1821.5,1821.4,0.8786]
[1743642235569,0.0082282,1821.5,1821.4,2.3418]
[1743642235962,0.8867782,1821.5,1821.4,1.4632]
[1743642236468,0.8867782,1821.5,1821.1,4.033]
[1743642236469,0.0082282,1821.5,1821.1,4.033]
[1743642236671,0.87869,1821.2,1821.1,1.4632]
[1743642237264,3.2078,1821.4,1821.0,0.7607]
[1743642237265,0.87874,1821.1,1821.0,0.7607]
[1743642237466,2.34764,1821.1,1821.0,2.2464]
[1743642237964,0.87872,1821.2,1821.0,3.12519]
[1743642238569,1.4689,1821.3,1821.1,0.87874]
[1743642238771,0.87867,1821.3,1821.2,1.4857]
[1743642239366,2.34753,1821.4,1821.2,1.4857]
[1743642239567,0.8868182,1821.5,1821.2,1.4857]
[1743642239760,0.8868182,1821.5,1821.3,0.87865]
[1743642239962,0.8868182,1821.5,1821.4,1.4857]
[1743642240565,2.3159182,1821.5,1821.4,1.4857]
[1743642244062,2.3159182,1821.5,1821.4,2.0275261]
[1743642244967,1.4373282,1821.5,1821.1,4.7781]
[1743642245171,0.87868,1821.3,1821.2,2.04823357]
[1743642245370,0.87868,1821.3,1821.2,2.75460575]
[1743642245773,0.87868,1821.3,1821.2,3.44996177]
[1743642247776,0.87863,1821.4,1821.2,4.32865177]
[1743642247977,0.87863,1821.4,1821.3,1.94396177]
[1743642249080,0.0082282,1821.5,1821.4,0.8786]
[1743642249377,0.0082282,1821.5,1821.4,7.64528959]
[1743642249579,0.0082282,1821.5,1821.4,8.35166177]
[1743642250769,0.0082282,1821.5,1821.4,14.17566177]
[1743642250972,3.2078,1822.2,1821.4,15.79706177]
[1743642251179,0.8783,1822.1,1821.9,0.87836]
[1743642251482,0.8783,1822.1,1822.0,1.96523357]
[1743642251780,0.8783,1822.1,1822.0,2.67160575]
[1743642252183,2.3022,1822.1,1822.0,1.24860575]
[1743642252388,2.3022,1822.1,1822.0,0.54223357]
[1743642252679,0.87831,1822.0,1821.9,0.0082282]
[1743642252988,0.87831,1822.0,1821.4,3.2078]
[1743642252989,0.87855,1821.5,1821.4,3.2078]
[1743642253178,0.87855,1821.5,1821.4,1.23965198]
[1743642253383,0.87853,1821.6,1821.4,1.23965198]
[1743642253575,0.87853,1821.6,1821.5,2.67785198]
[1743642253775,0.87848,1821.7,1821.5,2.67785198]
[1743642254076,0.87848,1821.7,1821.6,1.23965198]
[1743642254382,0.87848,1821.7,1821.6,1.94715058]
[1743642254577,2.19586,1822.0,1821.6,1.94715058]
[1743642254578,3.2078,1822.0,1821.6,1.94763193]
[1743642254784,2.19526,1822.5,1821.6,1.94763193]
[1743642254785,1.4114,1822.1,1821.7,3.55666061]
[1743642254983,1.4114,1822.1,1821.8,2.11843061]
[1743642255278,1.4114,1822.1,1821.9,2.68880733]
[1743642255476,1.4114,1822.1,1822.0,0.54310873]
[1743642255678,2.28966,1822.1,1822.0,0.54310873]
[1743642255882,2.28966,1822.1,1821.9,1.4382]
[1743642256175,1.4114,1822.1,1822.0,0.54293379]
[1743642256376,3.2160282,1822.2,1822.0,0.54292825]
[1743642256573,4.5956282,1822.2,1822.1,1.97232825]
[1743642257581,4.5956282,1822.2,1822.1,1.97206622]
[1743642257882,4.5956282,1822.2,1822.1,1.4294]
[1743642258484,1.3878282,1822.2,1822.1,1.4294]
[1743642258885,0.0082282,1822.2,1822.1,2.84994642]
[1743642259684,0.0082282,1822.2,1822.1,2.68888642]
[1743642259885,0.0082282,1822.2,1822.1,3.39491469]
[1743642260089,0.0082282,1822.2,1822.1,3.39474326]
[1743642260287,0.0082282,1822.2,1822.1,3.56697499]
[1743642261485,0.0082282,1822.2,1822.1,2.68871499]
[1743642261682,0.87833,1822.0,1821.7,9.91023]
[1743642261984,0.87833,1822.0,1821.9,1.5006]
[1743642262188,0.87833,1822.0,1821.9,2.04259847]
[1743642262385,0.87833,1822.0,1821.9,0.54199847]
[1743642262584,0.87837,1821.9,1821.7,14.5614]
[1743642262887,2.30837,1821.9,1821.8,0.54210391]
[1743642264592,0.87836,1821.9,1821.8,0.54210391]
[1743642265887,0.87828,1822.1,1821.8,5.26513383]
[1743642266085,0.0082282,1822.2,1821.9,4.2123018]
[1743642266387,0.87826,1822.1,1822.0,0.54210391]
[1743642266591,2.25466,1822.1,1822.0,1.93060391]
[1743642266888,0.87826,1822.1,1822.0,1.93051601]
[1743642267485,0.87826,1822.1,1822.0,1.9304312]
[1743642268388,4.0942782,1822.2,1822.0,2.8087412]
[1743642268580,4.0942782,1822.2,1822.1,1.2438312]
[1743642269686,3.2160282,1822.2,1822.1,2.1220912]
[1743642269892,3.2160282,1822.2,1822.1,6.1490912]
[1743642270192,0.0082282,1822.2,1822.1,7.54975531]
[1743642271079,0.0082282,1822.2,1822.1,7.00761954]
[1743642271286,0.0082282,1822.2,1822.1,7.54922192]
[1743642271884,0.8864382,1822.2,1822.1,6.67096192]
[1743642272386,0.8864382,1822.2,1822.1,7.54922192]
[1743642272585,0.0082282,1822.2,1822.1,7.54922192]
[1743642273189,0.8864382,1822.2,1822.1,6.67096192]
[1743642273591,0.8864382,1822.2,1822.1,5.97630808]
[1743642274092,0.8864382,1822.2,1822.1,1.94930808]
[1743642274293,4.0942382,1822.2,1822.1,1.24740808]
[1743642274489,0.87836,1821.9,1821.8,8.6725]
[1743642274694,0.87836,1821.9,1821.8,9.21556122]
[1743642274995,1.4913,1822.1,1821.8,10.09396982]
[1743642274996,0.87835,1822.0,1821.8,10.09396982]
[1743642275293,0.87835,1822.0,1821.9,1.98175982]
[1743642275487,0.0082282,1822.2,1821.9,2.67848267]
[1743642275687,0.0082282,1822.2,1822.1,0.87826]
[1743642275996,0.0082282,1822.2,1822.1,8.29298459]
[1743642276492,0.0082282,1822.2,1822.1,8.12209042]
[1743642276684,0.0082282,1822.2,1822.1,9.00044621]
[1743642280293,0.0082282,1822.2,1822.1,9.00238823]
[1743642281297,0.0082282,1822.2,1822.1,8.12412823]
[1743642281498,0.8864382,1822.2,1822.1,4.09812823]
[1743642281790,0.8864382,1822.2,1822.1,1.25139128]
[1743642282397,4.0942382,1822.2,1822.1,1.25139128]
[1743642282592,2.2849382,1822.2,1822.1,1.25139128]
[1743642282901,2.2849382,1822.2,1822.1,0.54402545]
[1743642284001,5.4927382,1822.2,1822.1,0.54402545]
[1743642285304,7.9927382,1822.2,1822.1,0.54402545]
[1743642285598,7.9927382,1822.2,1822.1,0.51368407]
[1743642285801,12.0177382,1822.2,1822.1,0.51368407]
[1743642286499,0.87841,1821.8,1821.7,1.405]
[1743642286700,0.87841,1821.8,1821.7,2.10326046]
[1743642287003,0.87841,1821.8,1821.7,2.81265672]
[1743642288502,0.87841,1821.8,1821.7,2.81376526]
[1743642291598,0.87841,1821.8,1821.7,1.40876526]
[1743642291798,4.08621,1821.8,1821.7,0.70939626]
[1743642291994,0.87841,1821.8,1821.7,0.70939626]
[1743642292200,5.48781,1821.8,1821.7,0.70939626]
[1743642292400,5.48781,1821.8,1821.4,0.0082282]
[1743642292401,0.87855,1821.5,1821.4,0.0082282]
[1743642293104,2.28015,1821.5,1821.4,0.0082282]
[1743642294109,2.28015,1821.5,1821.4,0.71748365]
[1743642294407,2.28015,1821.5,1821.4,0.0082282]
[1743642297502,2.28015,1821.5,1821.4,0.55210668]
[1743642300613,2.28015,1821.5,1821.4,0.0082282]
[1743642301212,3.2078,1821.6,1821.4,0.0082282]
[1743642301406,0.87855,1821.5,1821.4,0.0082282]
[1743642301612,0.87855,1821.5,1821.4,0.55189926]
[1743642302010,2.26885,1821.5,1821.4,0.55189926]
[1743642302313,8.79185,1821.5,1821.4,0.0082282]
[1743642302609,0.87889,1820.8,1820.7,0.7207]
[1743642302809,0.87889,1820.8,1820.7,0.54416809]
[1743642303011,0.87898,1820.6,1820.5,3.2078]
[1743642303211,0.87898,1820.6,1820.5,3.75139299]
[1743642303407,0.87898,1820.6,1820.5,5.17109299]
[1743642304310,0.87898,1820.6,1820.5,1.4197]
[1743642304515,2.31478,1820.6,1820.5,1.4197]
[1743642304714,0.87903,1820.5,1820.4,0.0082282]